[Event "Titled Tuesday Blitz August 16 Early 2022"]
[White "Quirke, Jeffrey"]
[Black "Legenia, Artem"]
[WhiteFideId "2013029"]
[BlackFideId "14136945"]
[WhiteElo "2048"]
[BlackElo "2092"]
[Result "0-1"]
[Round "06"]
[TimeControl "180+2"]
[Date "2022.08.18"]
[WhiteClock "0:00:00"]
[BlackClock "0:00:00"]

1. d4 {[%clk 0:00:00]}  Nf6 {[%clk 0:00:00]} 2. c4 {[%clk 0:00:00]}  Nc6 {[%clk 0:00:00]} 3. Nf3 {[%clk 0:00:00]}  e6 {[%clk 0:00:00]} 4. a3 {[%clk 0:00:00]}  d5 {[%clk 0:00:00]} 5. Bg5 {[%clk 0:00:00]}  Be7 {[%clk 0:00:00]} 6. e3 {[%clk 0:00:00]}  dxc4 {[%clk 0:00:00]} 7. Bxc4 {[%clk 0:00:00]}  O-O {[%clk 0:00:00]} 8. O-O {[%clk 0:00:00]}  h6 {[%clk 0:00:00]} 9. Bh4 {[%clk 0:00:00]}  b6 {[%clk 0:00:00]} 10. Nc3 {[%clk 0:00:00]}  Bb7 {[%clk 0:00:00]} 11. Qe2 {[%clk 0:00:00]}  Nd7 {[%clk 0:00:00]} 12. Bg3 {[%clk 0:00:00]}  Bd6 {[%clk 0:00:00]} 13. Rfd1 {[%clk 0:00:00]}  Bxg3 {[%clk 0:00:00]} 14. hxg3 {[%clk 0:00:00]}  Ne7 {[%clk 0:00:00]} 15. b4 {[%clk 0:00:00]}  a6 {[%clk 0:00:00]} 16. Rac1 {[%clk 0:00:00]}  Nf6 {[%clk 0:00:00]} 17. e4 {[%clk 0:00:00]}  Qc8 {[%clk 0:00:00]} 18. d5 {[%clk 0:00:00]}  exd5 {[%clk 0:00:00]} 19. exd5 {[%clk 0:00:00]}  Re8 {[%clk 0:00:00]} 20. Qa2 {[%clk 0:00:00]}  b5 {[%clk 0:00:00]} 21. Bb3 {[%clk 0:00:00]}  Nf5 {[%clk 0:00:00]} 22. d6 {[%clk 0:00:00]}  Nxd6 {[%clk 0:00:00]} 23. Rxd6 {[%clk 0:00:00]}  cxd6 {[%clk 0:00:00]} 24. Bxf7+ {[%clk 0:00:00]}  Kh8 {[%clk 0:00:00]} 25. Bxe8 {[%clk 0:00:00]}  Qxe8 {[%clk 0:00:00]} 26. Re1 {[%clk 0:00:00]}  Qc6 {[%clk 0:00:00]} 27. Qd2 {[%clk 0:00:00]}  Rc8 {[%clk 0:00:00]} 28. Re3 {[%clk 0:00:00]}  d5 {[%clk 0:00:00]} 29. Rd3 {[%clk 0:00:00]}  Ne4 {[%clk 0:00:00]} 30. Nxe4 {[%clk 0:00:00]}  Qc1+ {[%clk 0:00:00]} 31. Kh2 {[%clk 0:00:00]}  dxe4 {[%clk 0:00:00]} 32. Rd8+ {[%clk 0:00:00]}  Kh7 {[%clk 0:00:00]} 33. Qxc1 {[%clk 0:00:00]}  Rxc1 {[%clk 0:00:00]} 34. Ne5 {[%clk 0:00:00]}  Rc3 {[%clk 0:00:00]} 35. g4 {[%clk 0:00:00]}  Rxa3 {[%clk 0:00:00]} 36. Rd7 {[%clk 0:00:00]}  Bc8 {[%clk 0:00:00]} 37. Rc7 {[%clk 0:00:00]}  Be6 {[%clk 0:00:00]} 38. Rc6 {[%clk 0:00:00]}  Ba2 {[%clk 0:00:00]} 39. g5 {[%clk 0:00:00]}  hxg5 {[%clk 0:00:00]} 40. Nf7 {[%clk 0:00:00]}  Bxf7 {[%clk 0:00:00]} 0-1


[Site "https://www.chess.com"]

[Event "Titled Tuesday Blitz August 16 Early 2022"]
[White "Rangel, Daniel"]
[Black "Lebedev, Artem S."]
[WhiteFideId "2124475"]
[BlackFideId "34272747"]
[WhiteElo "2189"]
[BlackElo "1901"]
[Result "1-0"]
[Round "06"]
[TimeControl "180+2"]
[Date "2022.08.18"]
[WhiteClock "0:00:00"]
[BlackClock "0:00:00"]

1. d4 {[%clk 0:00:00]}  d5 {[%clk 0:00:00]} 2. c4 {[%clk 0:00:00]}  e6 {[%clk 0:00:00]} 3. Nc3 {[%clk 0:00:00]}  Nf6 {[%clk 0:00:00]} 4. Bg5 {[%clk 0:00:00]}  Be7 {[%clk 0:00:00]} 5. e3 {[%clk 0:00:00]}  h6 {[%clk 0:00:00]} 6. Bh4 {[%clk 0:00:00]}  O-O {[%clk 0:00:00]} 7. Bd3 {[%clk 0:00:00]}  b6 {[%clk 0:00:00]} 8. cxd5 {[%clk 0:00:00]}  Nxd5 {[%clk 0:00:00]} 9. Bxe7 {[%clk 0:00:00]}  Qxe7 {[%clk 0:00:00]} 10. Nxd5 {[%clk 0:00:00]}  exd5 {[%clk 0:00:00]} 11. Ne2 {[%clk 0:00:00]}  Ba6 {[%clk 0:00:00]} 12. O-O {[%clk 0:00:00]}  Bxd3 {[%clk 0:00:00]} 13. Qxd3 {[%clk 0:00:00]}  Nd7 {[%clk 0:00:00]} 14. Rac1 {[%clk 0:00:00]}  Nf6 {[%clk 0:00:00]} 15. Rc6 {[%clk 0:00:00]}  Rfc8 {[%clk 0:00:00]} 16. Rfc1 {[%clk 0:00:00]}  Ne4 {[%clk 0:00:00]} 17. Nc3 {[%clk 0:00:00]}  Nf6 {[%clk 0:00:00]} 18. Qf5 {[%clk 0:00:00]}  Qd8 {[%clk 0:00:00]} 19. Nb5 {[%clk 0:00:00]}  Ne8 {[%clk 0:00:00]} 20. Qc2 {[%clk 0:00:00]}  Qd7 {[%clk 0:00:00]} 21. Nxc7 {[%clk 0:00:00]}  Nxc7 {[%clk 0:00:00]} 22. Rxc7 {[%clk 0:00:00]}  Rxc7 {[%clk 0:00:00]} 23. Qxc7 {[%clk 0:00:00]}  Qa4 {[%clk 0:00:00]} 24. Qc6 {[%clk 0:00:00]} 1-0


[Site "https://www.chess.com"]

[Event "Titled Tuesday Blitz August 16 Early 2022"]
[White "Rios Escobar, Adan"]
[Black "Averjanov, Alexey"]
[WhiteFideId "3403645"]
[BlackFideId "14109867"]
[WhiteElo "2276"]
[BlackElo "2399"]
[Result "1-0"]
[Round "06"]
[TimeControl "180+2"]
[Date "2022.08.18"]
[WhiteClock "0:00:00"]
[BlackClock "0:00:00"]

1. d4 {[%clk 0:00:00]}  d5 {[%clk 0:00:00]} 2. g3 {[%clk 0:00:00]}  Nf6 {[%clk 0:00:00]} 3. Nf3 {[%clk 0:00:00]}  e6 {[%clk 0:00:00]} 4. c4 {[%clk 0:00:00]}  Be7 {[%clk 0:00:00]} 5. Bg2 {[%clk 0:00:00]}  O-O {[%clk 0:00:00]} 6. O-O {[%clk 0:00:00]}  c6 {[%clk 0:00:00]} 7. Qc2 {[%clk 0:00:00]}  Nbd7 {[%clk 0:00:00]} 8. Nbd2 {[%clk 0:00:00]}  b6 {[%clk 0:00:00]} 9. e4 {[%clk 0:00:00]}  dxe4 {[%clk 0:00:00]} 10. Nxe4 {[%clk 0:00:00]}  Bb7 {[%clk 0:00:00]} 11. Rd1 {[%clk 0:00:00]}  Nxe4 {[%clk 0:00:00]} 12. Qxe4 {[%clk 0:00:00]}  Nf6 {[%clk 0:00:00]} 13. Qe2 {[%clk 0:00:00]}  Qc7 {[%clk 0:00:00]} 14. Bf4 {[%clk 0:00:00]}  Bd6 {[%clk 0:00:00]} 15. Ne5 {[%clk 0:00:00]}  Rad8 {[%clk 0:00:00]} 16. c5 {[%clk 0:00:00]}  Bxe5 {[%clk 0:00:00]} 17. Bxe5 {[%clk 0:00:00]}  Qd7 {[%clk 0:00:00]} 18. Bxf6 {[%clk 0:00:00]}  gxf6 {[%clk 0:00:00]} 19. Qh5 {[%clk 0:00:00]}  Qe7 {[%clk 0:00:00]} 20. Rac1 {[%clk 0:00:00]}  bxc5 {[%clk 0:00:00]} 21. dxc5 {[%clk 0:00:00]}  f5 {[%clk 0:00:00]} 22. b4 {[%clk 0:00:00]}  Kg7 {[%clk 0:00:00]} 23. h3 {[%clk 0:00:00]}  h6 {[%clk 0:00:00]} 24. g4 {[%clk 0:00:00]}  fxg4 {[%clk 0:00:00]} 25. hxg4 {[%clk 0:00:00]}  Qg5 {[%clk 0:00:00]} 26. Qxg5+ {[%clk 0:00:00]}  hxg5 {[%clk 0:00:00]} 27. b5 {[%clk 0:00:00]}  Rxd1+ {[%clk 0:00:00]} 28. Rxd1 {[%clk 0:00:00]}  Rc8 {[%clk 0:00:00]} 29. Rd7 {[%clk 0:00:00]}  Ba8 {[%clk 0:00:00]} 30. b6 {[%clk 0:00:00]}  axb6 {[%clk 0:00:00]} 31. cxb6 {[%clk 0:00:00]}  Rb8 {[%clk 0:00:00]} 32. Ra7 {[%clk 0:00:00]}  Kf6 {[%clk 0:00:00]} 33. a4 {[%clk 0:00:00]}  Ke5 {[%clk 0:00:00]} 34. a5 {[%clk 0:00:00]}  Kd6 {[%clk 0:00:00]} 35. Rxf7 {[%clk 0:00:00]}  c5 {[%clk 0:00:00]} 36. b7 {[%clk 0:00:00]}  Bxb7 {[%clk 0:00:00]} 37. Bxb7 {[%clk 0:00:00]}  c4 {[%clk 0:00:00]} 38. Kf1 {[%clk 0:00:00]}  c3 {[%clk 0:00:00]} 39. Ke2 {[%clk 0:00:00]}  Kc5 {[%clk 0:00:00]} 40. a6 {[%clk 0:00:00]}  Kb6 {[%clk 0:00:00]} 41. Kd3 {[%clk 0:00:00]}  Rh8 {[%clk 0:00:00]} 42. Kxc3 {[%clk 0:00:00]}  Rh4 {[%clk 0:00:00]} 43. f3 {[%clk 0:00:00]}  Rh1 {[%clk 0:00:00]} 44. Rf6 {[%clk 0:00:00]}  Ka7 {[%clk 0:00:00]} 45. Rxe6 {[%clk 0:00:00]}  Rc1+ {[%clk 0:00:00]} 46. Kd3 {[%clk 0:00:00]}  Rc5 {[%clk 0:00:00]} 47. Kd4 {[%clk 0:00:00]}  Ra5 {[%clk 0:00:00]} 48. Re5 {[%clk 0:00:00]}  Ra3 {[%clk 0:00:00]} 49. Rxg5 {[%clk 0:00:00]}  Ra4+ {[%clk 0:00:00]} 50. Ke5 {[%clk 0:00:00]}  Rb4 {[%clk 0:00:00]} 51. f4 {[%clk 0:00:00]}  Rb6 {[%clk 0:00:00]} 52. f5 {[%clk 0:00:00]}  Rb5+ {[%clk 0:00:00]} 53. Kf6 {[%clk 0:00:00]}  Rb1 {[%clk 0:00:00]} 54. Kg7 {[%clk 0:00:00]}  Rc1 {[%clk 0:00:00]} 55. f6 {[%clk 0:00:00]}  Rc7+ {[%clk 0:00:00]} 56. f7 {[%clk 0:00:00]}  Rc5 {[%clk 0:00:00]} 57. Rxc5 {[%clk 0:00:00]}  Kb6 {[%clk 0:00:00]} 58. Rf5 {[%clk 0:00:00]}  Ka7 {[%clk 0:00:00]} 59. f8=Q {[%clk 0:00:00]}  Kb6 {[%clk 0:00:00]} 60. Qc5# {[%clk 0:00:00]} 1-0


[Site "https://www.chess.com"]

[Event "Titled Tuesday Blitz August 16 Early 2022"]
[White "Rostovtsev, Dmitry"]
[Black "Goltseva, Ekaterina"]
[WhiteFideId "34278320"]
[BlackFideId "24173770"]
[WhiteElo "2309"]
[BlackElo "2306"]
[Result "1-0"]
[Round "06"]
[TimeControl "180+2"]
[Date "2022.08.18"]
[WhiteClock "0:00:00"]
[BlackClock "0:00:00"]

1. e4 {[%clk 0:00:00]}  e5 {[%clk 0:00:00]} 2. Nf3 {[%clk 0:00:00]}  Nc6 {[%clk 0:00:00]} 3. Bb5 {[%clk 0:00:00]}  a6 {[%clk 0:00:00]} 4. Ba4 {[%clk 0:00:00]}  Nf6 {[%clk 0:00:00]} 5. O-O {[%clk 0:00:00]}  Be7 {[%clk 0:00:00]} 6. Re1 {[%clk 0:00:00]}  b5 {[%clk 0:00:00]} 7. Bb3 {[%clk 0:00:00]}  d6 {[%clk 0:00:00]} 8. h3 {[%clk 0:00:00]}  O-O {[%clk 0:00:00]} 9. c3 {[%clk 0:00:00]}  a5 {[%clk 0:00:00]} 10. a4 {[%clk 0:00:00]}  b4 {[%clk 0:00:00]} 11. d4 {[%clk 0:00:00]}  bxc3 {[%clk 0:00:00]} 12. bxc3 {[%clk 0:00:00]}  exd4 {[%clk 0:00:00]} 13. cxd4 {[%clk 0:00:00]}  d5 {[%clk 0:00:00]} 14. e5 {[%clk 0:00:00]}  Ne4 {[%clk 0:00:00]} 15. Nbd2 {[%clk 0:00:00]}  Bf5 {[%clk 0:00:00]} 16. Nf1 {[%clk 0:00:00]}  Bb4 {[%clk 0:00:00]} 17. Re3 {[%clk 0:00:00]}  Nc3 {[%clk 0:00:00]} 18. Qe1 {[%clk 0:00:00]}  Ne4 {[%clk 0:00:00]} 19. Bd2 {[%clk 0:00:00]}  Nxd2 {[%clk 0:00:00]} 20. N1xd2 {[%clk 0:00:00]}  Be4 {[%clk 0:00:00]} 21. Qe2 {[%clk 0:00:00]}  Bxd2 {[%clk 0:00:00]} 22. Qxd2 {[%clk 0:00:00]}  Rb8 {[%clk 0:00:00]} 23. Rc1 {[%clk 0:00:00]}  Qd7 {[%clk 0:00:00]} 24. Qc3 {[%clk 0:00:00]}  Rb6 {[%clk 0:00:00]} 25. Bc2 {[%clk 0:00:00]}  Bxf3 {[%clk 0:00:00]} 26. Rxf3 {[%clk 0:00:00]}  g6 {[%clk 0:00:00]} 27. Kh2 {[%clk 0:00:00]}  Rfb8 {[%clk 0:00:00]} 28. Bd3 {[%clk 0:00:00]}  Qe7 {[%clk 0:00:00]} 29. Bb5 {[%clk 0:00:00]}  Na7 {[%clk 0:00:00]} 30. Qxc7 {[%clk 0:00:00]}  Qxc7 {[%clk 0:00:00]} 31. Rxc7 {[%clk 0:00:00]}  Nxb5 {[%clk 0:00:00]} 32. axb5 {[%clk 0:00:00]}  Rxb5 {[%clk 0:00:00]} 33. Rfxf7 {[%clk 0:00:00]}  a4 {[%clk 0:00:00]} 34. Rg7+ {[%clk 0:00:00]}  Kh8 {[%clk 0:00:00]} 35. Rxh7+ {[%clk 0:00:00]}  Kg8 {[%clk 0:00:00]} 36. e6 {[%clk 0:00:00]}  a3 {[%clk 0:00:00]} 37. Rcg7+ {[%clk 0:00:00]}  Kf8 {[%clk 0:00:00]} 38. e7+ {[%clk 0:00:00]}  Ke8 {[%clk 0:00:00]} 39. Rh8+ {[%clk 0:00:00]}  Kd7 {[%clk 0:00:00]} 40. e8=Q+ {[%clk 0:00:00]}  Kd6 {[%clk 0:00:00]} 41. Qxg6# {[%clk 0:00:00]} 1-0


[Site "https://www.chess.com"]

[Event "Titled Tuesday Blitz August 16 Early 2022"]
[White "Sailer, Mike"]
[Black "Miszler, Levente"]
[WhiteFideId "2012901"]
[BlackFideId "763276"]
[WhiteElo "2109"]
[BlackElo "2252"]
[Result "1-0"]
[Round "06"]
[TimeControl "180+2"]
[Date "2022.08.18"]
[WhiteClock "0:00:00"]
[BlackClock "0:00:00"]

1. d4 {[%clk 0:00:00]}  Nf6 {[%clk 0:00:00]} 2. Nc3 {[%clk 0:00:00]}  g6 {[%clk 0:00:00]} 3. e4 {[%clk 0:00:00]}  d6 {[%clk 0:00:00]} 4. Bf4 {[%clk 0:00:00]}  Bg7 {[%clk 0:00:00]} 5. Qd2 {[%clk 0:00:00]}  O-O {[%clk 0:00:00]} 6. O-O-O {[%clk 0:00:00]}  Nbd7 {[%clk 0:00:00]} 7. h4 {[%clk 0:00:00]}  c5 {[%clk 0:00:00]} 8. d5 {[%clk 0:00:00]}  a6 {[%clk 0:00:00]} 9. h5 {[%clk 0:00:00]}  b5 {[%clk 0:00:00]} 10. hxg6 {[%clk 0:00:00]}  fxg6 {[%clk 0:00:00]} 11. f3 {[%clk 0:00:00]}  b4 {[%clk 0:00:00]} 12. Na4 {[%clk 0:00:00]}  Nb6 {[%clk 0:00:00]} 13. Nxb6 {[%clk 0:00:00]}  Qxb6 {[%clk 0:00:00]} 14. Bh6 {[%clk 0:00:00]}  a5 {[%clk 0:00:00]} 15. Bxg7 {[%clk 0:00:00]}  Kxg7 {[%clk 0:00:00]} 16. Qh6+ {[%clk 0:00:00]}  Kg8 {[%clk 0:00:00]} 17. Bc4 {[%clk 0:00:00]}  Ba6 {[%clk 0:00:00]} 18. Bxa6 {[%clk 0:00:00]}  Qxa6 {[%clk 0:00:00]} 19. Nh3 {[%clk 0:00:00]}  Rf7 {[%clk 0:00:00]} 20. Ng5 {[%clk 0:00:00]}  Raf8 {[%clk 0:00:00]} 21. Nxf7 {[%clk 0:00:00]}  Rxf7 {[%clk 0:00:00]} 22. Qe3 {[%clk 0:00:00]}  Nd7 {[%clk 0:00:00]} 23. Qd3 {[%clk 0:00:00]}  c4 {[%clk 0:00:00]} 24. Qd4 {[%clk 0:00:00]}  Nc5 {[%clk 0:00:00]} 25. e5 {[%clk 0:00:00]}  b3 {[%clk 0:00:00]} 26. axb3 {[%clk 0:00:00]}  cxb3 {[%clk 0:00:00]} 27. exd6 {[%clk 0:00:00]}  Qxd6 {[%clk 0:00:00]} 28. Rhe1 {[%clk 0:00:00]}  bxc2 {[%clk 0:00:00]} 29. Kxc2 {[%clk 0:00:00]}  Qb6 {[%clk 0:00:00]} 30. d6 {[%clk 0:00:00]}  exd6 {[%clk 0:00:00]} 31. Re8+ {[%clk 0:00:00]}  Rf8 {[%clk 0:00:00]} 32. Rxf8+ {[%clk 0:00:00]}  Kxf8 {[%clk 0:00:00]} 33. Qxd6+ {[%clk 0:00:00]}  Qxd6 {[%clk 0:00:00]} 34. Rxd6 {[%clk 0:00:00]}  Ke7 {[%clk 0:00:00]} 35. Rd5 {[%clk 0:00:00]}  Nb7 {[%clk 0:00:00]} 36. Rb5 {[%clk 0:00:00]}  Nd6 {[%clk 0:00:00]} 37. Rxa5 {[%clk 0:00:00]}  h5 {[%clk 0:00:00]} 38. Ra6 {[%clk 0:00:00]}  h4 {[%clk 0:00:00]} 39. Rxd6 {[%clk 0:00:00]}  Kxd6 {[%clk 0:00:00]} 40. Kd3 {[%clk 0:00:00]}  Ke5 {[%clk 0:00:00]} 41. Ke3 {[%clk 0:00:00]}  g5 {[%clk 0:00:00]} 42. b4 {[%clk 0:00:00]}  Kd5 {[%clk 0:00:00]} 43. b5 {[%clk 0:00:00]}  Kc5 {[%clk 0:00:00]} 44. Ke4 {[%clk 0:00:00]}  Kxb5 {[%clk 0:00:00]} 45. Kf5 {[%clk 0:00:00]}  h3 {[%clk 0:00:00]} 46. gxh3 {[%clk 0:00:00]}  Kc5 {[%clk 0:00:00]} 47. Kxg5 {[%clk 0:00:00]}  Kd5 {[%clk 0:00:00]} 48. Kf5 {[%clk 0:00:00]}  Kd6 {[%clk 0:00:00]} 49. Kf6 {[%clk 0:00:00]} 1-0


[Site "https://www.chess.com"]

[Event "Titled Tuesday Blitz August 16 Early 2022"]
[White "Samarth, J Rao"]
[Black "Quispe Santacruz, Javier"]
[WhiteFideId "46652370"]
[BlackFideId "3800920"]
[WhiteElo "1664"]
[BlackElo "1811"]
[Result "1-0"]
[Round "06"]
[TimeControl "180+2"]
[Date "2022.08.18"]
[WhiteClock "0:00:00"]
[BlackClock "0:00:00"]

1. c4 {[%clk 0:00:00]}  c6 {[%clk 0:00:00]} 2. e4 {[%clk 0:00:00]}  d5 {[%clk 0:00:00]} 3. exd5 {[%clk 0:00:00]}  cxd5 {[%clk 0:00:00]} 4. cxd5 {[%clk 0:00:00]}  Nf6 {[%clk 0:00:00]} 5. Qa4+ {[%clk 0:00:00]}  Bd7 {[%clk 0:00:00]} 6. Qb3 {[%clk 0:00:00]}  Qc8 {[%clk 0:00:00]} 7. Nc3 {[%clk 0:00:00]}  e6 {[%clk 0:00:00]} 8. dxe6 {[%clk 0:00:00]}  Bxe6 {[%clk 0:00:00]} 9. Bb5+ {[%clk 0:00:00]}  Nbd7 {[%clk 0:00:00]} 10. Qd1 {[%clk 0:00:00]}  a6 {[%clk 0:00:00]} 11. Be2 {[%clk 0:00:00]}  Bc5 {[%clk 0:00:00]} 12. Nf3 {[%clk 0:00:00]}  O-O {[%clk 0:00:00]} 13. O-O {[%clk 0:00:00]}  b5 {[%clk 0:00:00]} 14. a3 {[%clk 0:00:00]}  Nb6 {[%clk 0:00:00]} 15. d4 {[%clk 0:00:00]}  Be7 {[%clk 0:00:00]} 16. Bg5 {[%clk 0:00:00]}  h6 {[%clk 0:00:00]} 17. Bxf6 {[%clk 0:00:00]}  Bxf6 {[%clk 0:00:00]} 18. Ne4 {[%clk 0:00:00]}  Be7 {[%clk 0:00:00]} 19. Rc1 {[%clk 0:00:00]}  Qc7 {[%clk 0:00:00]} 20. Rxc7 {[%clk 0:00:00]} 1-0


[Site "https://www.chess.com"]

[Event "Titled Tuesday Blitz August 16 Early 2022"]
[White "Samunenkov, Ihor"]
[Black "Sirosh, Ilja"]
[WhiteFideId "14187086"]
[BlackFideId "4500458"]
[WhiteElo "2441"]
[BlackElo "2255"]
[Result "1/2-1/2"]
[Round "06"]
[TimeControl "180+1"]
[Date "2022.08.16"]
[WhiteClock "0:00:09"]
[BlackClock "0:00:04"]

1. d4 {[%clk 0:03:00]}  Nf6 {[%clk 0:02:58]} 2. c4 {[%clk 0:03:01]}  g6 {[%clk 0:02:58]} 3. Nf3 {[%clk 0:02:58]}  Bg7 {[%clk 0:02:57]} 4. g3 {[%clk 0:02:59]}  O-O {[%clk 0:02:57]} 5. Bg2 {[%clk 0:03:00]}  d6 {[%clk 0:02:58]} 6. O-O {[%clk 0:03:00]}  c5 {[%clk 0:02:59]} 7. dxc5 {[%clk 0:02:59]}  dxc5 {[%clk 0:02:58]} 8. Nc3 {[%clk 0:03:00]}  Nc6 {[%clk 0:02:58]} 9. Bf4 {[%clk 0:03:00]}  Nh5 {[%clk 0:02:58]} 10. Be3 {[%clk 0:02:35]}  b6 {[%clk 0:02:52]} 11. Qc1 {[%clk 0:01:46]}  Bb7 {[%clk 0:02:51]} 12. Rd1 {[%clk 0:01:45]}  Qe8 {[%clk 0:02:45]} 13. Bh6 {[%clk 0:01:42]}  Rd8 {[%clk 0:02:42]} 14. Nd5 {[%clk 0:01:40]}  e6 {[%clk 0:02:18]} 15. Bxg7 {[%clk 0:01:30]}  Kxg7 {[%clk 0:02:19]} 16. Qc3+ {[%clk 0:01:28]}  f6 {[%clk 0:02:12]} 17. Ne3 {[%clk 0:00:36]}  Qe7 {[%clk 0:02:12]} 18. Nc2 {[%clk 0:00:30]}  Kf7 {[%clk 0:02:01]} 19. e3 {[%clk 0:00:29]}  Ng7 {[%clk 0:01:59]} 20. g4 {[%clk 0:00:27]}  h6 {[%clk 0:01:55]} 21. h3 {[%clk 0:00:27]}  e5 {[%clk 0:01:41]} 22. Nd2 {[%clk 0:00:25]}  Nb8 {[%clk 0:01:29]} 23. Ne4 {[%clk 0:00:08]}  Ne6 {[%clk 0:01:28]} 24. Ng3 {[%clk 0:00:05]}  Bxg2 {[%clk 0:01:22]} 25. Kxg2 {[%clk 0:00:06]}  Qb7+ {[%clk 0:01:21]} 26. f3 {[%clk 0:00:06]}  Ng5 {[%clk 0:01:19]} 27. Rf1 {[%clk 0:00:06]}  h5 {[%clk 0:01:09]} 28. h4 {[%clk 0:00:05]}  Ne6 {[%clk 0:01:03]} 29. gxh5 {[%clk 0:00:06]}  gxh5 {[%clk 0:01:03]} 30. Rad1 {[%clk 0:00:06]}  Rxd1 {[%clk 0:01:01]} 31. Rxd1 {[%clk 0:00:07]}  Rg8 {[%clk 0:01:01]} 32. Kf2 {[%clk 0:00:07]}  Ng7 {[%clk 0:00:45]} 33. Qd3 {[%clk 0:00:04]}  Qe7 {[%clk 0:00:42]} 34. Qd5+ {[%clk 0:00:04]}  Qe6 {[%clk 0:00:42]} 35. e4 {[%clk 0:00:02]}  Nc6 {[%clk 0:00:33]} 36. Ne3 {[%clk 0:00:02]}  Nd4 {[%clk 0:00:32]} 37. Rg1 {[%clk 0:00:03]}  Nc6 {[%clk 0:00:17]} 38. b3 {[%clk 0:00:02]}  Rd8 {[%clk 0:00:17]} 39. Qxe6+ {[%clk 0:00:02]}  Nxe6 {[%clk 0:00:18]} 40. Nd5 {[%clk 0:00:02]}  Rh8 {[%clk 0:00:16]} 41. Nf5 {[%clk 0:00:02]}  Ncd4 {[%clk 0:00:14]} 42. Nd6+ {[%clk 0:00:03]}  Kf8 {[%clk 0:00:15]} 43. Ke3 {[%clk 0:00:01]}  Nc2+ {[%clk 0:00:08]} 44. Kd2 {[%clk 0:00:02]}  Ncd4 {[%clk 0:00:09]} 45. Rg6 {[%clk 0:00:02]}  Nxf3+ {[%clk 0:00:08]} 46. Ke3 {[%clk 0:00:03]}  Nfd4 {[%clk 0:00:09]} 47. Rxf6+ {[%clk 0:00:03]}  Kg7 {[%clk 0:00:09]} 48. Nf5+ {[%clk 0:00:03]}  Kh7 {[%clk 0:00:07]} 49. Nxd4 {[%clk 0:00:03]}  Nxd4 {[%clk 0:00:07]} 50. Rf7+ {[%clk 0:00:03]}  Kg6 {[%clk 0:00:07]} 51. Rxa7 {[%clk 0:00:03]}  Rf8 {[%clk 0:00:07]} 52. Nxb6 {[%clk 0:00:03]}  Rf3+ {[%clk 0:00:08]} 53. Kd2 {[%clk 0:00:04]}  Rh3 {[%clk 0:00:08]} 54. Nd7 {[%clk 0:00:04]}  Rh2+ {[%clk 0:00:08]} 55. Ke1 {[%clk 0:00:04]}  Rxh4 {[%clk 0:00:08]} 56. Nxe5+ {[%clk 0:00:04]}  Kf6 {[%clk 0:00:08]} 57. Nd3 {[%clk 0:00:03]}  Rh1+ {[%clk 0:00:09]} 58. Kd2 {[%clk 0:00:03]}  h4 {[%clk 0:00:09]} 59. e5+ {[%clk 0:00:03]}  Kf5 {[%clk 0:00:08]} 60. Rf7+ {[%clk 0:00:03]}  Ke6 {[%clk 0:00:08]} 61. Rf6+ {[%clk 0:00:03]}  Ke7 {[%clk 0:00:08]} 62. Rh6 {[%clk 0:00:02]}  Rh2+ {[%clk 0:00:07]} 63. Ke1 {[%clk 0:00:02]}  Nf3+ {[%clk 0:00:05]} 64. Kf1 {[%clk 0:00:02]}  Rxa2 {[%clk 0:00:04]} 65. Nf2 {[%clk 0:00:02]}  Rb2 {[%clk 0:00:04]} 66. Kg2 {[%clk 0:00:02]}  Nxe5 {[%clk 0:00:04]} 67. Rxh4 {[%clk 0:00:03]}  Rxb3 {[%clk 0:00:04]} 68. Ne4 {[%clk 0:00:04]}  Rb2+ {[%clk 0:00:04]} 69. Kg3 {[%clk 0:00:04]}  Nd3 {[%clk 0:00:04]} 70. Rh7+ {[%clk 0:00:03]}  Ke6 {[%clk 0:00:04]} 71. Rh5 {[%clk 0:00:04]}  Rc2 {[%clk 0:00:03]} 72. Nxc5+ {[%clk 0:00:04]}  Nxc5 {[%clk 0:00:02]} 73. Rxc5 {[%clk 0:00:05]}  Kd6 {[%clk 0:00:03]} 74. Rd5+ {[%clk 0:00:06]}  Kc6 {[%clk 0:00:03]} 75. Rd4 {[%clk 0:00:07]}  Kc5 {[%clk 0:00:04]} 76. Rh4 {[%clk 0:00:08]}  Rxc4 {[%clk 0:00:04]} 77. Rxc4+ {[%clk 0:00:09]}  Kxc4 {[%clk 0:00:04]} 1/2-1/2


[Site "https://www.chess.com"]

[Event "Titled Tuesday Blitz August 16 Early 2022"]
[White "Schekachikhin, Maksim"]
[Black "Wagner, Dennis"]
[WhiteFideId "24177830"]
[BlackFideId "24650684"]
[WhiteElo "2376"]
[BlackElo "2570"]
[Result "0-1"]
[Round "06"]
[TimeControl "180+2"]
[Date "2022.08.18"]
[WhiteClock "0:00:00"]
[BlackClock "0:00:00"]

1. d4 {[%clk 0:00:00]}  Nf6 {[%clk 0:00:00]} 2. c4 {[%clk 0:00:00]}  e6 {[%clk 0:00:00]} 3. Nc3 {[%clk 0:00:00]}  Bb4 {[%clk 0:00:00]} 4. e3 {[%clk 0:00:00]}  O-O {[%clk 0:00:00]} 5. Bd3 {[%clk 0:00:00]}  c5 {[%clk 0:00:00]} 6. Nf3 {[%clk 0:00:00]}  d5 {[%clk 0:00:00]} 7. cxd5 {[%clk 0:00:00]}  exd5 {[%clk 0:00:00]} 8. dxc5 {[%clk 0:00:00]}  Nbd7 {[%clk 0:00:00]} 9. O-O {[%clk 0:00:00]}  Nxc5 {[%clk 0:00:00]} 10. Ne2 {[%clk 0:00:00]}  Nxd3 {[%clk 0:00:00]} 11. Qxd3 {[%clk 0:00:00]}  Qe7 {[%clk 0:00:00]} 12. a3 {[%clk 0:00:00]}  Bd6 {[%clk 0:00:00]} 13. b4 {[%clk 0:00:00]}  Be6 {[%clk 0:00:00]} 14. Bb2 {[%clk 0:00:00]}  Ne4 {[%clk 0:00:00]} 15. Rac1 {[%clk 0:00:00]}  a5 {[%clk 0:00:00]} 16. b5 {[%clk 0:00:00]}  Nc5 {[%clk 0:00:00]} 17. Qd4 {[%clk 0:00:00]}  f6 {[%clk 0:00:00]} 18. Qh4 {[%clk 0:00:00]}  Nd3 {[%clk 0:00:00]} 19. Rc2 {[%clk 0:00:00]}  Nxb2 {[%clk 0:00:00]} 20. Rxb2 {[%clk 0:00:00]}  Bxa3 {[%clk 0:00:00]} 21. Rc2 {[%clk 0:00:00]}  Bd6 {[%clk 0:00:00]} 22. Ned4 {[%clk 0:00:00]}  a4 {[%clk 0:00:00]} 23. Nxe6 {[%clk 0:00:00]}  Qxe6 {[%clk 0:00:00]} 24. Nd4 {[%clk 0:00:00]}  Qe4 {[%clk 0:00:00]} 25. Qxe4 {[%clk 0:00:00]}  dxe4 {[%clk 0:00:00]} 26. Ra1 {[%clk 0:00:00]}  a3 {[%clk 0:00:00]} 27. Kf1 {[%clk 0:00:00]}  Rfc8 {[%clk 0:00:00]} 28. Ke2 {[%clk 0:00:00]}  Rxc2+ {[%clk 0:00:00]} 29. Nxc2 {[%clk 0:00:00]}  a2 {[%clk 0:00:00]} 30. Kd2 {[%clk 0:00:00]}  Be5 {[%clk 0:00:00]} 31. Nd4 {[%clk 0:00:00]}  Bxd4 {[%clk 0:00:00]} 32. exd4 {[%clk 0:00:00]}  Kf7 {[%clk 0:00:00]} 33. Kc3 {[%clk 0:00:00]}  Ke6 {[%clk 0:00:00]} 34. Kc4 {[%clk 0:00:00]}  Kd6 {[%clk 0:00:00]} 35. g3 {[%clk 0:00:00]}  Ra4+ {[%clk 0:00:00]} 36. Kb3 {[%clk 0:00:00]}  Ra5 {[%clk 0:00:00]} 37. Kb4 {[%clk 0:00:00]}  b6 {[%clk 0:00:00]} 38. Kc4 {[%clk 0:00:00]}  g5 {[%clk 0:00:00]} 39. g4 {[%clk 0:00:00]}  Ke6 {[%clk 0:00:00]} 40. h3 {[%clk 0:00:00]}  Kd6 {[%clk 0:00:00]} 41. d5 {[%clk 0:00:00]}  Ke5 {[%clk 0:00:00]} 42. d6 {[%clk 0:00:00]}  Kxd6 {[%clk 0:00:00]} 43. Kd4 {[%clk 0:00:00]}  Ra4+ {[%clk 0:00:00]} 0-1


[Site "https://www.chess.com"]